bitfinex/quotes_BTCUSD_20240719
["timestamp","ask_amount","ask_price","bid_price","bid_amount"]
[1721394406807,0.00783,64480.0,64479.0,1.24584576]
[1721394407018,0.01483,64480.0,64479.0,1.37361325]
[1721394408097,0.02283,64480.0,64479.0,1.37461325]
[1721394408496,0.00883,64480.0,64479.0,1.37461325]
[1721394408902,0.02283,64480.0,64479.0,1.37461325]
[1721394409131,0.00883,64480.0,64479.0,1.37461325]
[1721394409535,0.01983,64480.0,64479.0,1.06443525]
[1721394409729,0.01983,64480.0,64479.0,0.93566776]
[1721394409933,0.01983,64480.0,64479.0,1.37461054]
[1721394411376,0.110238,64480.0,64479.0,1.37461054]
[1721394412869,0.110238,64480.0,64479.0,1.37461135]
[1721394413528,0.102238,64480.0,64479.0,1.37361135]
[1721394413867,0.092238,64480.0,64479.0,0.91605161]
[1721394414218,0.093238,64480.0,64479.0,0.92005161]
[1721394414414,0.093238,64480.0,64479.0,0.91305161]
[1721394414415,0.092238,64480.0,64479.0,0.91305161]
[1721394415499,0.091238,64480.0,64479.0,0.90905161]
[1721394415714,0.091238,64480.0,64479.0,0.78028602]
[1721394415969,0.091238,64480.0,64479.0,1.21923397]
[1721394416186,0.091238,64480.0,64479.0,1.09046402]
[1721394416395,0.091238,64480.0,64479.0,1.22623324]
[1721394416610,0.094238,64480.0,64479.0,1.38061498]
[1721394417053,0.091238,64480.0,64479.0,1.37361498]
[1721394417259,0.092238,64480.0,64479.0,1.37461498]
[1721394417772,0.092238,64480.0,64479.0,1.37361498]
[1721394418127,0.092238,64480.0,64479.0,1.37461498]
[1721394418588,0.092238,64480.0,64479.0,1.37460929]
[1721394418986,0.093238,64480.0,64479.0,1.37460929]
[1721394419190,0.091238,64480.0,64479.0,1.37460929]
[1721394419403,0.091238,64480.0,64479.0,1.82388729]
[1721394419611,0.091238,64480.0,64479.0,1.94436131]
[1721394419816,0.091238,64480.0,64479.0,1.92988729]
[1721394421063,0.091238,64480.0,64479.0,1.61970929]
[1721394421412,0.091238,64480.0,64479.0,1.61969759]
[1721394422349,0.091238,64480.0,64479.0,1.17041959]
[1721394423206,0.091238,64480.0,64479.0,1.01603785]
[1721394423597,0.091238,64480.0,64479.0,1.01203785]
[1721394423799,0.091238,64480.0,64479.0,1.01303785]
[1721394423963,0.091238,64480.0,64479.0,1.01003785]
[1721394424410,0.091238,64480.0,64479.0,1.00905937]
[1721394424659,0.091238,64480.0,64479.0,0.28970337]
[1721394424865,0.091238,64480.0,64479.0,0.59988137]
[1721394425473,0.157538,64480.0,64479.0,0.13461437]
[1721394425638,0.157538,64480.0,64479.0,0.28970337]
[1721394426233,0.165538,64480.0,64479.0,0.28970337]
[1721394426641,0.179538,64480.0,64479.0,0.28870337]
[1721394426838,0.170538,64480.0,64479.0,0.28870337]
[1721394427040,0.176538,64480.0,64479.0,0.28970337]
[1721394427275,0.189538,64480.0,64479.0,0.28970337]
[1721394427506,0.183538,64480.0,64479.0,0.28871229]
[1721394427720,0.183538,64480.0,64479.0,0.28971229]
[1721394427972,0.124238,64480.0,64479.0,0.59989029]
[1721394428147,0.124238,64480.0,64479.0,0.91006829]
[1721394428530,0.097238,64480.0,64479.0,0.91006829]
[1721394429127,0.106238,64480.0,64479.0,0.91006829]
[1721394429762,0.107238,64480.0,64479.0,0.90906829]
[1721394430188,0.113238,64480.0,64479.0,0.91006829]
[1721394430574,0.113238,64480.0,64479.0,0.28870427]
[1721394430575,0.107238,64480.0,64479.0,0.28870427]
[1721394430908,0.112238,64480.0,64479.0,0.28870427]
[1721394432739,0.112238,64480.0,64479.0,0.13361527]
[1721394432740,0.40721974,64480.0,64479.0,0.13361527]
[1721394433100,0.40721974,64480.0,64467.0,0.01848469]
[1721394433101,0.0769,64467.0,64465.0,0.4737]
[1721394433519,0.0769,64467.0,64466.0,0.15959677]
[1721394433751,0.0769,64467.0,64465.0,0.4737]
[1721394434159,0.155099,64475.0,64467.0,0.310232]
[1721394434160,0.0769,64475.0,64467.0,0.310232]
[1721394434823,0.0769,64475.0,64474.0,0.155101]
[1721394435034,0.0769,64475.0,64472.0,0.155105]
[1721394435235,0.0769,64475.0,64468.0,0.31471886]
[1721394435434,0.0769,64475.0,64473.0,0.00448623]
[1721394435641,0.0769,64475.0,64471.0,0.310216]
[1721394435843,0.0769,64475.0,64474.0,0.0044853]
[1721394436169,0.0889,64475.0,64474.0,0.0044853]
[1721394436378,0.0769,64475.0,64474.0,0.0044853]
[1721394436667,0.0769,64475.0,64474.0,1.0901923]
[1721394436668,0.019,64475.0,64474.0,1.0901923]
[1721394437016,0.01,64475.0,64474.0,0.4697883]
[1721394437217,0.01,64475.0,64474.0,0.0044853]
[1721394437541,0.018,64475.0,64474.0,0.1605863]
[1721394438308,0.028,64475.0,64474.0,0.1605863]
[1721394438559,0.028,64475.0,64474.0,0.4707883]
[1721394441713,0.028,64475.0,64474.0,0.1605863]
[1721394441912,0.028,64475.0,64474.0,0.4707883]
[1721394442734,0.028,64475.0,64474.0,1.24557404]
[1721394442907,0.028,64475.0,64474.0,1.3743582]
[1721394444946,0.028,64475.0,64474.0,1.4374582]
[1721394445890,0.028,64475.0,64474.0,1.30867404]
[1721394446092,0.028,64475.0,64474.0,1.37435647]
[1721394450163,0.028,64475.0,64474.0,0.90977273]
[1721394452081,0.028,64475.0,64474.0,0.13426773]
[1721394452285,0.176,64475.0,64474.0,0.13427723]
[1721394452493,0.176,64475.0,64474.0,0.13427719]
[1721394452896,0.176,64475.0,64474.0,0.0054853]
[1721394453330,0.176,64475.0,64474.0,0.001]
[1721394453539,0.19551113,64475.0,64474.0,0.00584489]
[1721394453751,0.19551113,64475.0,64474.0,0.001]
[1721394453951,0.19551113,64475.0,64474.0,0.00547221]
[1721394453952,0.40531838,64475.0,64474.0,0.00547221]
[1721394454092,0.35060913,64475.0,64474.0,0.001]
[1721394454501,0.19551113,64475.0,64474.0,0.001]
[1721394454712,0.66080613,64475.0,64474.0,0.001]
[1721394455110,0.35060913,64475.0,64474.0,0.001]
[1721394455317,0.35050899,64475.0,64474.0,0.001]
[1721394456114,0.19541099,64475.0,64474.0,0.001]
[1721394456397,0.028,64475.0,64474.0,0.311202]
[1721394456568,0.028,64475.0,64474.0,0.59509529]
[1721394456771,0.028,64475.0,64474.0,0.9097695]
[1721394458347,0.028,64475.0,64474.0,0.909764]
[1721394458677,0.034,64475.0,64474.0,0.909764]
[1721394459777,0.034,64475.0,64474.0,1.37434774]
[1721394461362,0.034,64475.0,64474.0,1.24556095]
[1721394461560,0.034,64475.0,64474.0,1.37434022]
[1721394462326,0.034,64475.0,64474.0,1.37525322]
[1721394464640,0.034,64475.0,64474.0,1.37525033]
[1721394464977,0.034,64475.0,64474.0,1.24647395]
[1721394465202,0.034,64475.0,64474.0,1.37525158]
[1721394467749,0.034,64475.0,64474.0,1.24647395]
[1721394467960,0.034,64475.0,64474.0,1.37524993]
[1721394474132,0.034,64475.0,64474.0,1.37525092]
[1721394475188,0.1122,64475.0,64474.0,0.13516218]
[1721394476290,0.1122,64475.0,64474.0,0.29026318]
[1721394477302,0.1122,64475.0,64474.0,0.29027844]
[1721394477680,0.1069,64475.0,64474.0,0.29027844]
[1721394479539,0.1069,64475.0,64474.0,0.13517744]
[1721394479711,0.12625669,64475.0,64474.0,0.13517744]
[1721394480406,0.1069,64475.0,64474.0,0.13517876]
[1721394480627,0.1262666,64475.0,64474.0,0.13517871]
[1721394482085,0.1262666,64475.0,64474.0,0.00638521]
[1721394482397,0.1262666,64475.0,64474.0,0.001913]
[1721394482848,0.1069,64475.0,64474.0,0.001913]
[1721394483196,0.12627347,64475.0,64474.0,0.001913]
[1721394484233,0.28137147,64475.0,64474.0,0.001913]
[1721394484862,0.28137285,64475.0,64474.0,0.001913]
[1721394485992,0.12627485,64475.0,64474.0,0.001913]
[1721394486243,0.12627554,64475.0,64474.0,0.001913]
[1721394486496,0.28137354,64475.0,64474.0,0.001913]
[1721394486841,0.12627554,64475.0,64474.0,0.001913]
[1721394488786,0.1069,64475.0,64474.0,0.001913]
[1721394488992,0.1263152,64475.0,64474.0,0.001913]
[1721394489404,0.1069,64475.0,64474.0,0.001913]
[1721394489606,0.12630092,64475.0,64474.0,0.001913]
[1721394492237,0.12627486,64475.0,64474.0,0.001913]
[1721394492856,0.28137286,64475.0,64474.0,0.001913]
[1721394493081,0.59156986,64475.0,64474.0,0.001913]
[1721394493277,0.28137286,64475.0,64474.0,0.001913]
[1721394493757,0.12627486,64475.0,64474.0,0.001913]
[1721394493959,1.3829753,64475.0,64474.0,0.001913]
[1721394494149,1.90342747,64475.0,64474.0,0.001913]
[1721394494358,1.83258492,64475.0,64474.0,0.001913]
[1721394494562,1.86401642,64475.0,64474.0,0.001913]
[1721394494753,2.01951642,64475.0,64474.0,0.000913]
[1721394495186,2.11581642,64475.0,64474.0,0.001913]
[1721394495537,2.11581642,64475.0,64474.0,0.002913]
[1721394495538,2.13738681,64475.0,64474.0,0.002913]
[1721394496556,2.43358381,64475.0,64474.0,0.001913]
[1721394496755,2.43358381,64475.0,64453.0,0.000913]
[1721394496756,0.1453,64458.0,64453.0,0.000913]
[1721394496957,0.01937486,64457.0,64453.0,0.000913]
[1721394497191,0.01937486,64457.0,64454.0,0.00487573]
[1721394497389,0.01937486,64457.0,64453.0,0.000913]
[1721394497752,0.01937486,64457.0,64454.0,0.00487573]
[1721394497955,0.24416225,64457.0,64453.0,0.000913]
[1721394498209,0.0807,64455.0,64453.0,0.000913]
[1721394498412,0.02857866,64454.0,64453.0,0.000913]
[1721394498614,0.0807,64455.0,64453.0,0.000913]
[1721394498837,0.02858004,64454.0,64453.0,0.000913]
[1721394499827,0.04158004,64454.0,64453.0,0.000913]
[1721394500392,0.013,64454.0,64453.0,0.000913]
[1721394500775,0.04157387,64454.0,64453.0,0.000913]
[1721394501354,0.024,64454.0,64453.0,0.001913]
[1721394501853,0.26405404,64454.0,64453.0,0.001913]
[1721394502045,1.2120596,64454.0,64453.0,0.001913]
[1721394503044,1.1990596,64454.0,64453.0,0.001913]
[1721394504484,1.1990596,64454.0,64453.0,0.000913]
[1721394504485,1.2020596,64454.0,64453.0,0.000913]
[1721394505030,1.21611662,64454.0,64453.0,0.000913]
[1721394505225,1.23011662,64454.0,64453.0,0.000913]
[1721394505359,1.68991462,64454.0,64453.0,0.000913]
[1721394505558,1.72691462,64454.0,64453.0,0.000913]
[1721394505972,1.69891462,64454.0,64453.0,0.000913]
[1721394506518,1.71291462,64454.0,64453.0,0.000913]
[1721394507624,1.69891462,64454.0,64453.0,0.000913]
[1721394508670,1.68491462,64454.0,64453.0,0.000913]
[1721394508879,1.69891462,64454.0,64453.0,0.000913]
[1721394509509,1.69891462,64454.0,64430.0,0.0645]
[1721394509510,0.0806,64444.0,64430.0,0.0645]
[1721394509714,0.0601,64445.0,64426.0,0.215716]
[1721394509715,0.0806,64433.0,64426.0,0.215716]
[1721394509914,0.0806,64433.0,64431.0,0.0049096]
[1721394510144,0.0806,64433.0,64425.0,0.310438]
[1721394510145,0.36968474,64432.0,64424.0,0.155221]
[1721394510773,0.155207,64430.0,64421.0,0.0605]
[1721394511083,0.2215,64426.0,64422.0,0.155226]
[1721394511317,0.2215,64426.0,64419.0,0.310466]
[1721394511318,0.2215,64426.0,64419.0,0.155232]
[1721394511521,0.2215,64426.0,64418.0,0.0605]
[1721394511756,0.0806,64425.0,64418.0,0.37097]
[1721394511972,0.0806,64425.0,64419.0,0.155233]
[1721394512188,0.0806,64425.0,64418.0,0.215735]
[1721394512411,0.155222,64424.0,64416.0,0.155238]
[1721394512637,0.391039,64425.0,64414.0,0.1433]
[1721394512638,0.2215,64420.0,64414.0,0.0605]
[1721394513065,0.376733,64420.0,64412.0,0.255248]
[1721394513302,0.376733,64420.0,64412.0,0.1]
[1721394513303,0.2215,64420.0,64412.0,0.1]
[1721394513533,0.4866706,64423.0,64410.0,0.1367]
[1721394513534,0.2215,64413.0,64410.0,0.0605]
[1721394515764,0.2355,64413.0,64410.0,0.0605]
[1721394515985,0.2355,64413.0,64409.0,0.009174]
[1721394515986,0.2475,64413.0,64409.0,0.009174]
[1721394516204,0.3252,64413.0,64409.0,0.009174]
[1721394516425,0.3252,64413.0,64410.0,0.00537898]
[1721394516639,0.4042915,64413.0,64409.0,0.009174]
[1721394516911,0.4042915,64413.0,64411.0,0.00537788]
[1721394517123,0.3902915,64413.0,64410.0,0.00537898]
[1721394517327,0.3902915,64413.0,64409.0,0.009174]
[1721394517328,0.3902915,64413.0,64412.0,0.00537679]
[1721394517534,0.3112,64413.0,64411.0,0.00537788]
[1721394517747,0.3112,64413.0,64409.0,0.009174]
[1721394517965,0.454448,64413.0,64412.0,0.00537679]
[1721394518187,0.454448,64413.0,64409.0,0.009174]
[1721394518188,0.465765,64410.0,64409.0,0.009174]
[1721394519636,0.479765,64410.0,64409.0,0.009174]
[1721394519841,0.63414674,64410.0,64409.0,0.009174]
[1721394520072,0.64814674,64410.0,64409.0,0.009174]
[1721394520517,0.95865674,64410.0,64409.0,0.009174]
[1721394521137,1.03515674,64410.0,64409.0,0.009174]
[1721394521346,0.72464674,64410.0,64409.0,0.009174]
[1721394521555,0.71064674,64410.0,64409.0,0.009174]
[1721394521779,0.72464674,64410.0,64409.0,0.009174]
[1721394522375,0.69664674,64410.0,64409.0,0.009174]
[1721394522579,1.03515674,64410.0,64409.0,0.009174]
[1721394522997,0.014,64410.0,64409.0,0.009174]
[1721394523210,0.014,64410.0,64409.0,0.474946]
[1721394523414,0.014,64410.0,64409.0,1.62597543]
[1721394523415,0.028,64410.0,64409.0,1.62597543]
[1721394523622,0.014,64410.0,64409.0,1.93648676]
[1721394524040,0.014,64410.0,64409.0,2.24700176]
[1721394524251,0.46304871,64433.0,64431.0,0.155203]
[1721394524458,0.46304871,64433.0,64428.0,0.155211]
[1721394524686,0.15521,64429.0,64421.0,0.0629]
[1721394524929,0.15521,64429.0,64420.0,0.155231]
[1721394524930,0.23438174,64428.0,64420.0,0.155231]
[1721394525156,0.23438174,64428.0,64421.0,0.155228]
[1721394525379,0.23438174,64428.0,64415.0,0.0629]
[1721394525601,0.23438174,64428.0,64423.0,0.155222]
[1721394525602,0.15438174,64428.0,64423.0,0.155222]
[1721394525840,0.15438174,64428.0,64423.0,0.310447]
[1721394526044,0.0747,64433.0,64426.0,0.155216]
[1721394526254,0.310363,64441.0,64429.0,0.310417]
[1721394526255,0.07424367,64439.0,64429.0,0.310417]
[1721394526463,0.07424367,64439.0,64430.0,0.310414]
[1721394526464,0.15438174,64438.0,64430.0,0.310414]
[1721394526666,0.15438174,64438.0,64435.0,0.155194]
[1721394526872,0.15438174,64438.0,64436.0,0.155192]
[1721394527102,0.15438174,64438.0,64433.0,0.310396]
[1721394527314,0.1,64446.0,64433.0,0.310399]
[1721394527516,0.15438174,64445.0,64441.0,0.155179]
[1721394527720,0.15438174,64445.0,64428.0,0.064]
[1721394527934,0.04023971,64444.0,64439.0,0.155185]
[1721394528153,0.15438174,64443.0,64437.0,0.310379]
[1721394528386,0.15438174,64443.0,64441.0,0.15518]
[1721394528583,0.00877819,64448.0,64430.0,0.310412]
[1721394528796,0.00877819,64448.0,64431.0,0.57845939]
[1721394528797,0.15438174,64448.0,64431.0,0.57845939]
[1721394529005,0.15438174,64448.0,64446.0,0.155167]
[1721394529449,0.15438174,64448.0,64447.0,0.155166]
[1721394529685,0.15438174,64448.0,64445.0,0.155168]
[1721394529889,0.001,64448.0,64432.0,0.310403]
[1721394530093,0.015,64448.0,64447.0,0.155166]
[1721394530298,0.014,64448.0,64445.0,0.155168]
[1721394530730,0.028,64448.0,64444.0,0.310346]
[1721394530934,0.014,64448.0,64447.0,0.465498]
[1721394531308,0.014,64448.0,64447.0,0.77583]
[1721394531511,0.014,64448.0,64447.0,0.465498]
[1721394531710,0.026,64448.0,64447.0,0.466498]
[1721394532314,0.026,64448.0,64447.0,0.47006977]
[1721394532315,0.014,64448.0,64447.0,0.47006977]
[1721394532547,0.014,64448.0,64447.0,0.15973777]
[1721394532771,0.026,64448.0,64447.0,0.16073777]
[1721394533375,0.026,64448.0,64447.0,0.47106977]
[1721394533724,0.04,64448.0,64447.0,0.47106977]
[1721394534044,0.026,64448.0,64447.0,0.47106977]
[1721394534248,0.04,64448.0,64447.0,0.16073777]
[1721394535905,0.04,64448.0,64447.0,0.47106977]
[1721394536456,0.04,64448.0,64447.0,0.16073777]
[1721394536661,0.04,64448.0,64447.0,0.00557177]
[1721394536865,0.19438174,64448.0,64447.0,0.00557177]
[1721394537164,1.01630349,64448.0,64447.0,0.00557177]
[1721394537351,1.76829349,64448.0,64447.0,0.001]
[1721394537565,1.79668993,64448.0,64447.0,0.001]
[1721394537771,1.26349518,64448.0,64447.0,6e-08]
[1721394538180,0.155175,64443.0,64435.0,0.155195]
[1721394538311,0.15438174,64442.0,64435.0,0.155195]
[1721394538534,0.15438174,64442.0,64436.0,0.00492597]
[1721394540075,0.310372,64439.0,64436.0,0.00492597]
[1721394540304,0.15519,64437.0,64436.0,0.00492597]
[1721394540531,0.30957174,64437.0,64428.0,0.155211]
[1721394540723,0.1469,64441.0,64435.0,0.155193]
[1721394540956,0.15438174,64440.0,64433.0,0.310396]
[1721394541509,0.014,64439.0,64435.0,0.155194]
[1721394541710,0.15438174,64438.0,64434.0,0.15975452]
[1721394541919,0.15438174,64438.0,64436.0,0.00455566]
[1721394542127,0.15438174,64438.0,64435.0,0.00455659]
[1721394542349,0.025,64441.0,64437.0,0.00455491]
[1721394542551,0.025,64441.0,64439.0,0.155183]
[1721394542552,0.014,64441.0,64439.0,0.155183]
[1721394542942,0.014,64441.0,64440.0,0.00493147]
[1721394544125,0.014,64441.0,64436.0,0.310383]
[1721394544338,0.014,64441.0,64440.0,0.00537978]
[1721394544540,0.025,64441.0,64438.0,0.155187]
[1721394544704,0.011,64441.0,64440.0,0.00537978]
[1721394544908,0.025,64441.0,64439.0,0.00538088]
[1721394545134,0.014,64441.0,64440.0,0.00537978]
[1721394545339,0.025,64441.0,64440.0,0.00537978]
[1721394545534,0.025,64441.0,64438.0,0.155187]
[1721394545936,0.00896108,64444.0,64439.0,0.00538088]
[1721394546139,0.025,64441.0,64439.0,0.00538088]
[1721394547498,0.014,64441.0,64439.0,0.00538088]
[1721394547686,0.15438174,64443.0,64439.0,0.00538088]
[1721394547901,0.026,64441.0,64439.0,0.00538088]
[1721394548229,0.15438174,64443.0,64439.0,0.00538088]
[1721394548436,0.014,64441.0,64437.0,0.155189]
[1721394548650,0.026,64441.0,64438.0,0.00538198]
[1721394549299,0.012,64441.0,64438.0,0.00538198]
[1721394549896,0.15438174,64443.0,64438.0,0.00538198]
[1721394550100,0.02837346,64442.0,64438.0,0.00538198]
[1721394550435,0.02837346,64441.0,64438.0,0.00538198]
[1721394550832,0.04237346,64441.0,64438.0,0.00538198]
[1721394551062,0.15438174,64442.0,64438.0,0.00538198]
[1721394551284,0.02839663,64441.0,64438.0,0.00538198]
[1721394552081,0.04239663,64441.0,64438.0,0.00538198]
[1721394552283,0.02839663,64440.0,64438.0,0.00538198]
[1721394552492,0.155185,64439.0,64438.0,0.00538198]
[1721394552694,0.155185,64439.0,64427.0,0.310428]
[1721394552695,0.1387,64438.0,64419.0,0.1444]
[1721394552897,0.20577837,64437.0,64419.0,0.1444]
[1721394553056,0.20577837,64437.0,64420.0,0.00496118]
[1721394553057,0.31041,64431.0,64420.0,0.00496118]
[1721394553258,0.31041,64431.0,64420.0,0.15523]
[1721394553259,0.0605,64426.0,64420.0,0.15523]
[1721394553486,0.02836848,64425.0,64421.0,0.16155267]
[1721394553884,0.02836848,64425.0,64422.0,0.155226]
[1721394554083,0.02836848,64425.0,64422.0,0.16154933]
[1721394554285,0.02836848,64425.0,64423.0,0.155223]
[1721394554492,0.02831714,64424.0,64423.0,0.16154599]
[1721394555506,0.013,64425.0,64423.0,0.00632199]
[1721394555719,0.008,64438.0,64423.0,0.00632199]
[1721394555720,0.00895415,64439.0,64432.0,0.310401]
[1721394555930,0.04630691,64447.0,64439.0,0.155183]
[1721394555931,0.233366,64447.0,64439.0,0.155183]
[1721394556142,0.18271063,64446.0,64439.0,0.155183]
[1721394556341,0.02832889,64445.0,64440.0,0.00567395]
[1721394556557,0.18270952,64444.0,64440.0,0.00567395]
[1721394556767,0.02832778,64443.0,64440.0,0.00567395]
[1721394556969,0.15438174,64442.0,64438.0,0.216787]
[1721394557208,0.15438174,64442.0,64441.0,0.00567275]
[1721394557399,0.02830146,64442.0,64438.0,0.0616]
[1721394557633,0.00903111,64447.0,64445.0,0.155169]
[1721394557834,0.014,64444.0,64443.0,0.155175]
[1721394558061,0.034044,64448.0,64447.0,0.465498]
[1721394558631,0.034044,64448.0,64447.0,0.155166]
[1721394558855,0.06226999,64448.0,64446.0,0.155168]
[1721394559059,0.034044,64448.0,64447.0,0.155166]
[1721394559261,0.06227013,64448.0,64447.0,0.155166]
[1721394559496,0.034044,64448.0,64447.0,0.155166]
[1721394560256,0.040044,64448.0,64447.0,0.155166]
[1721394560782,0.051044,64448.0,64447.0,0.155166]
[1721394560953,0.040044,64448.0,64447.0,0.155166]
[1721394561524,0.051044,64448.0,64447.0,0.155166]
[1721394561729,0.045044,64448.0,64447.0,0.155166]
[1721394561934,0.045044,64448.0,64447.0,0.465498]
[1721394562142,0.064044,64448.0,64447.0,0.465498]
[1721394562350,0.064044,64448.0,64447.0,0.47184424]
[1721394562590,0.056044,64448.0,64447.0,0.47184424]
[1721394562942,0.056044,64448.0,64447.0,0.16151224]
[1721394563472,0.062044,64448.0,64447.0,0.16151224]
[1721394563684,0.040044,64448.0,64447.0,0.16151224]
[1721394564107,0.040044,64448.0,64447.0,0.47184424]
[1721394564639,0.044044,64448.0,64447.0,0.47184424]
[1721394565061,0.049044,64448.0,64447.0,0.47184424]
[1721394566020,0.049874,64448.0,64447.0,0.47184424]
[1721394566733,0.044874,64448.0,64447.0,0.78217624]
[1721394567052,0.034874,64448.0,64447.0,0.78217624]
[1721394567452,0.042874,64448.0,64447.0,0.84407624]
[1721394569179,0.045874,64448.0,64447.0,0.84407624]
[1721394570475,0.045874,64448.0,64447.0,1.22970824]
[1721394570881,0.045874,64448.0,64447.0,1.66887554]
[1721394571740,0.045874,64448.0,64447.0,1.66886417]
[1721394572101,0.045874,64448.0,64447.0,1.82324583]
[1721394572228,0.042874,64448.0,64447.0,1.82324583]
[1721394572646,0.042874,64448.0,64447.0,1.82424583]
[1721394572647,0.043874,64448.0,64447.0,1.82424583]
[1721394573240,0.035874,64448.0,64447.0,1.82424583]
[1721394574735,0.035874,64448.0,64447.0,1.35953209]
[1721394574971,0.035874,64448.0,64447.0,1.23070824]
[1721394575177,0.035874,64448.0,64447.0,1.35953248]
[1721394576091,0.035874,64448.0,64447.0,1.23070824]
[1721394579317,0.035874,64448.0,64447.0,0.16251224]
[1721394579474,0.035874,64448.0,64447.0,0.47284424]
[1721394579679,0.035874,64448.0,64447.0,0.78317624]
[1721394580200,0.034874,64448.0,64447.0,0.78217624]
[1721394581613,0.049874,64448.0,64447.0,0.47184424]
[1721394581813,0.049874,64448.0,64447.0,0.16151224]
[1721394582014,0.129074,64448.0,64447.0,0.00634624]
[1721394582214,0.114074,64448.0,64447.0,0.00634624]
[1721394582427,0.114074,64448.0,64446.0,0.155168]
[1721394582685,0.002794,64447.0,64446.0,0.155168]
[1721394583103,0.114074,64448.0,64446.0,0.155168]
[1721394583249,0.114074,64448.0,64439.0,0.000913]
[1721394583250,0.1418,64445.0,64439.0,0.000913]
[1721394583467,0.18249829,64444.0,64439.0,0.000913]
[1721394583687,0.02811655,64443.0,64439.0,0.000913]
[1721394583898,0.155182,64441.0,64439.0,0.000913]
[1721394584097,0.18329955,64440.0,64439.0,0.000913]
[1721394586062,0.18329955,64440.0,64439.0,0.001913]
[1721394586264,0.02811655,64440.0,64439.0,0.001913]
[1721394586429,0.18329755,64441.0,64439.0,0.001913]
[1721394586631,0.18329955,64440.0,64439.0,0.000913]
[1721394586829,0.18329955,64440.0,64439.0,0.001913]
[1721394587233,0.1832628,64440.0,64439.0,0.001913]
[1721394587435,0.1862628,64440.0,64439.0,0.000913]
[1721394588056,0.4966288,64440.0,64439.0,0.000913]
[1721394588312,0.8069948,64440.0,64439.0,0.000913]
[1721394588454,0.8895948,64440.0,64439.0,0.000913]
[1721394588638,1.41914254,64440.0,64439.0,0.000913]
[1721394589050,1.58115078,64440.0,64439.0,0.000913]
[1721394589320,1.76347788,64440.0,64439.0,0.000913]
[1721394589523,1.72752502,64440.0,64439.0,0.001913]
[1721394589849,1.94902502,64440.0,64439.0,0.001913]
[1721394590049,2.10337459,64440.0,64439.0,0.000913]
[1721394590254,1.88986076,64440.0,64439.0,0.000913]
[1721394590474,1.31374763,64440.0,64439.0,0.000913]
[1721394590685,1.21982665,64440.0,64439.0,0.000913]
[1721394591132,1.20582665,64440.0,64439.0,0.000913]
[1721394591549,1.21982665,64440.0,64439.0,0.000913]
[1721394591745,1.37417622,64440.0,64439.0,0.000913]
[1721394591948,1.46808843,64440.0,64439.0,0.000913]
[1721394592200,1.48208843,64440.0,64439.0,0.000913]
[1721394592549,1.40217622,64440.0,64439.0,0.000913]
[1721394592760,1.34172651,64440.0,64439.0,0.000913]
[1721394592971,1.23382665,64440.0,64439.0,0.000913]
[1721394593374,1.21969674,64440.0,64439.0,0.000913]
[1721394593578,1.24778711,64440.0,64439.0,0.000913]
[1721394593753,1.21969674,64440.0,64439.0,0.000913]
[1721394593953,1.24778711,64440.0,64439.0,0.000913]
[1721394595374,1.71250268,64440.0,64439.0,0.000913]
[1721394596199,1.67503278,64440.0,64439.0,0.000913]
[1721394596400,1.58115311,64440.0,64439.0,0.000913]
[1721394596606,1.58119685,64440.0,64439.0,0.000913]
[1721394599773,1.58116781,64440.0,64439.0,0.000913]
[1721394600412,0.37966981,64440.0,64439.0,0.000913]
[1721394600644,0.042,64440.0,64439.0,0.000913]
[1721394600880,0.042,64440.0,64439.0,0.303098]
[1721394601096,0.042,64440.0,64439.0,0.15382001]
[1721394601823,0.310347,64444.0,64439.0,0.00682001]
[1721394602052,0.155183,64440.0,64439.0,0.00682001]
[1721394602268,0.168183,64440.0,64439.0,0.00682001]
[1721394602491,0.168183,64440.0,64439.0,0.000913]
[1721394602736,0.155183,64440.0,64439.0,0.000913]
[1721394603461,0.169183,64440.0,64439.0,0.000913]
[1721394603708,0.014,64440.0,64439.0,0.000913]
[1721394603911,0.014,64440.0,64439.0,0.062213]
[1721394604114,0.027,64440.0,64439.0,0.06885839]
[1721394609361,0.027,64440.0,64439.0,0.29984339]
[1721394609905,0.027,64440.0,64439.0,0.61021439]
[1721394611716,0.027,64440.0,64439.0,0.29984339]
[1721394612463,0.027,64440.0,64439.0,0.14465839]
[1721394612681,0.05503293,64440.0,64439.0,0.14465839]
[1721394612926,0.05503293,64440.0,64439.0,0.06885839]
[1721394613195,0.20941467,64440.0,64439.0,0.00755839]
[1721394613424,0.67496367,64440.0,64439.0,0.000913]
[1721394613897,0.98532967,64440.0,64439.0,0.000913]
[1721394614398,1.41111096,64440.0,64439.0,0.000913]
[1721394614655,1.69365765,64440.0,64439.0,0.000913]
[1721394615479,1.64854861,64440.0,64439.0,0.000913]
[1721394615692,1.57825155,64440.0,64439.0,0.000913]
[1721394617153,1.63654711,64440.0,64439.0,0.000913]
[1721394617611,1.63655731,64440.0,64439.0,0.000913]
[1721394618057,1.70999589,64440.0,64439.0,0.000913]
[1721394618262,1.78321266,64440.0,64439.0,0.000913]
[1721394618473,1.73685477,64440.0,64439.0,0.000913]
[1721394618883,1.78321783,64440.0,64439.0,0.000913]
[1721394619086,1.94638267,64440.0,64439.0,0.000913]
[1721394619303,2.25674867,64440.0,64439.0,0.000913]
[1721394619509,2.25674867,64440.0,64419.0,0.0628]
[1721394619510,0.155231,64420.0,64419.0,0.0628]
[1721394619713,0.18330037,64420.0,64419.0,0.0628]
[1721394619916,0.18330037,64420.0,64419.0,0.06872077]
[1721394620127,0.18330037,64420.0,64419.0,0.0628]
[1721394620341,0.18330037,64420.0,64412.0,0.155249]
[1721394620587,0.18330037,64420.0,64410.0,0.000913]
[1721394620588,0.776202,64416.0,64410.0,0.000913]
[1721394620792,1.26921378,64416.0,64410.0,0.000913]
[1721394620999,1.36312136,64416.0,64410.0,0.000913]
[1721394621421,1.44232136,64416.0,64410.0,0.000913]
[1721394621633,1.50422136,64416.0,64410.0,0.000913]
[1721394621850,1.70376283,64416.0,64410.0,0.000913]